[Event "Czech Championship 2022"]
[Site "Usti nad Labem"]
[Date "2022.05.18"]
[Round "5.18"]
[White "Bokhnak, Timofey"]
[Black "Bartos, Jan"]
[Result "1-0"]
[ECO "C02"]
[WhiteElo "2060"]
[BlackElo "2125"]
[Annotator "TA"]
[PlyCount "85"]
[EventDate "2022.05.12"]
[EventType "swiss"]
[EventCountry "CZE"]
[SourceTitle "playchess.com"]
[Source "ChessBase"]
[SourceQuality "1"]
[TimeControl "40/5400+30:1800+30"]

{[%evp 14,85,0,0,0,0,0,-14,25,26,25,0,-1,-29,25,-19,25,13,39,39,50,0,0,-19,5,-66,-33,-26,0,7,77,73,70,68,72,72,70,67,60,44,48,40,83,67,94,64,85,102,100,56,58,64,149,138,279,268,261,241,246,221,183,81,1491,1283,1930,1654,12838,12839,12845,12845,12844,12844,12845,12845]} 1. e4 {[%emt 0:00:03]} e6 {[%emt 0:00:41]} 2. d4 {[%emt 0:00:43]} d5 {[%emt 0:00:04]} 3. e5 {[%emt 0:01:32]} c5 {[%emt 0:00:44]} 4. c3 {[%emt 0:00:04]} Qb6 {[%emt 0:00:12]} 5. Nf3 {[%emt 0:00:36]} Nc6 {[%emt 0:00:08]} 6. Be2 {[%emt 0:00:43]} cxd4 {[%emt 0:00:14]} 7. cxd4 {[%emt 0:00:07]} Nh6 {[%emt 0:00:06]} 8. Bxh6 $1 {[%emt 0:05:29][%mdl 4] Black must now prevent Bc1. outshines the older 8.Nc3.} Qxb2 {[%emt 0:00:21] C02: French: Advance Variation.} 9. Nbd2 {[%emt 0:19:06]} gxh6 {[%emt 0:01:07]} 10. O-O {[%emt 0:01:54]} Bg7 {[%emt 0:11:01] The position is equal.} (10... Nxd4 {is interesting.} 11. Rb1 Nxe2+ 12. Qxe2 Qa3) 11. Nb3 {[%emt 0:04:23][%mdl 1024] Hoping for a3. White has compensation.} Qa3 {[%emt 0:01:08]} 12. Ne1 {[%emt 0:07:57]} O-O {[%emt 0:03:39]} 13. f4 {[%emt 0:01:27]} f6 {[%emt 0:02:55] [#]} ({Better is} 13... b6) 14. Bd3 $146 {[%emt 0:01:36]} ({Predecessor:} 14. Nd3 Qe7 15. exf6 Rxf6 16. Ne5 Bd7 17. Rc1 Rc8 18. Qd2 Rff8 19. Bg4 Nxe5 20. fxe5 {1-0 (53) Morris,P (2405)-Ryan,J (2225) Dublin 1991}) 14... fxe5 {[%emt 0:08:41] ...e4 is the strong threat.} 15. dxe5 {[%emt 0:00:47]} Rf7 {[%emt 0:02:35]} 16. Nc2 {[%emt 0:01:23]} Qe7 {[%emt 0:00:46]} 17. Ne3 {[%emt 0:02:49]} (17. Rb1 $14) 17... Bd7 $11 {[%emt 0:01:51]} 18. Qh5 {[%emt 0:02:10]} Be8 {[%emt 0:11:20][%cal Oc6e5]} 19. Ng4 {[%emt 0:14:47]} (19. Qh3 $11) 19... Qf8 {[%emt 0:05:46]} (19... Nb4 $5 {[%cal Rb4d3]} 20. Qh3 h5 21. Nf6+ Bxf6 22. exf6 Rxf6 $17) 20. Qh4 {[%emt 0:00:08]} Ne7 {[%emt 0:00:46]} (20... Rxf4 $2 21. Rxf4 Qxf4 22. Nf6+ Bxf6 23. Qxf4 $18) 21. Nd4 {[%emt 0:00:18]} Ng6 {[%emt 0:06:06]} (21... Bd7 $1 $11 {keeps the balance.}) 22. Bxg6 $16 {[%emt 0:06:08] White is much more active.} hxg6 {[%emt 0:00:16]} 23. Nxe6 {[%emt 0:00:44] Pair of Knights!} Qe7 {[%emt 0:00:58]} 24. Qxe7 {[%emt 0:00:18]} Rxe7 {[%emt 0:00:03]} 25. Nxg7 {[%emt 0:00:22]} Kxg7 {[%emt 0:00:13]} 26. Rad1 {[%emt 0:00:18]} Bf7 {[%emt 0:14:04]} 27. Rd4 {[%emt 0:00:19]} Rc7 {[%emt 0:02:41] Against Rc1} 28. Ne3 {[%emt 0:00:25]} Rd8 {[%emt 0:01:09]} 29. Rfd1 {[%emt 0:00:07]} b5 {[%emt 0:06:25]} 30. g4 {[%emt 0:02:32]} ({Reject} 30. Nxd5 $6 Rcd7 31. e6 Bxe6 $11) 30... Rc3 {[%emt 0:02:23]} 31. Kf2 {[%emt 0:00:25] aiming for f5.} Ra3 {[%emt 0:00:33]} 32. R1d2 {[%emt 0:00:14]} Rc8 {[%emt 0:04:31]} (32... h5 $14) 33. Nxd5 {[%emt 0:07:24] Strongly threatening f5.} Bxd5 {[%emt 0:01:17]} (33... Rc4 $16) 34. Rxd5 {[%emt 0:00:03][%mdl 4096] Endgame KRR-KRR} Rc4 {[%emt 0:01:28] [#]} 35. R5d4 {[%emt 0:12:27]} ({Less strong is} 35. Rxb5 Rxf4+ 36. Ke2 h5 $14) ({Worse is} 35. Rd7+ Kf8 $14) 35... Rxd4 {[%emt 0:00:20]} 36. Rxd4 {[%emt 0:00:01]} Rxa2+ $18 {[%emt 0:00:07] [#] KR-KR} 37. Ke3 {[%emt 0:00:07]} (37. Kf3 $1 $18 {and the rest is easy.}) 37... a5 $2 {[%emt 0:01:49][%mdl 8192]} (37... Ra1 $16) 38. f5 {[%emt 0:00:22] White is clearly winning.} gxf5 {[%emt 0:00:33]} 39. gxf5 {[%emt 0:00:04][%cal Bg4f5,Bf5f6,Bf6f7][%mdl 32] Threatens to win with f6+.} b4 {[%emt 0:00:12]} 40. f6+ {[%emt 0:01:08]} Kf7 {[%emt 0:05:05]} 41. Rd7+ {[%emt 0:30:10]} Ke6 {[%emt 0:30:08]} 42. f7 {[%emt 0:03:03] White wants to mate with Rc7.} Ra3+ {[%emt 0:00:09]} 43. Ke4 {[%emt 0:00:16] Weighted Error Value: White=0.17 (very precise) /Black=0.30} 1-0

[Event "Czech Championship 2022"]
[Site "Usti nad Labem"]
[Date "2022.05.18"]
[Round "5.19"]
[White "Horak, Martin"]
[Black "Soucek, Petr"]
[Result "1/2-1/2"]
[ECO "D00"]
[WhiteElo "2343"]
[BlackElo "2177"]
[Annotator "TA"]
[PlyCount "64"]
[EventDate "2022.05.12"]
[EventType "swiss"]
[EventCountry "CZE"]
[SourceTitle "playchess.com"]
[Source "ChessBase"]
[SourceQuality "1"]
[TimeControl "40/5400+30:1800+30"]

{[%evp 9,64,-48,-35,-38,-33,-42,-10,-29,-18,-12,-25,-16,8,-53,-30,-46,-39,-51,-45,-53,-66,-88,-91,-101,-104,-109,-72,-132,-60,-124,-79,-77,-85,-105,-108,-98,-109,-103,-49,-37,-47,-62,-52,-67,-16,-16,0,-5,-5,-6,0,0,0,0,7,-11,0]} 1. d4 {[%emt 0:01:11]} Nf6 {[%emt 0:00:14]} 2. Bg5 {[%emt 0:02:47]} d5 {[%emt 0:00:28]} 3. e3 {[%emt 0:00:57]} c5 {[%emt 0:02:31]} 4. dxc5 {[%emt 0:03:42]} Ne4 {[%emt 0:02:08]} 5. Bf4 {[%emt 0:01:18]} Nc6 $1 {[%emt 0:01:56][%cal Bb8c6,Bc6d8,Bd8e6][%mdl 32]} 6. Nf3 {[%emt 0:00:31] Prevents e5. D00: 1 d4 d5: Unusual lines.} f6 {[%emt 0:12:20]} (6... g6 {with more complications.} 7. c4 Bg7 8. cxd5 Bxb2 9. Nbd2 Nxd2 10. Nxd2 Qxd5 11. Rb1 Bc3) 7. c4 {[%emt 0:03:55] [#]} dxc4 $146 {[%emt 0:02:13] [#] aiming for ...Qxd1+.} (7... e5 $5 {[%cal Re5f4]} 8. Bg3 Be6 9. cxd5 Qxd5 10. Qxd5 Bxd5 $15) ({Predecessor:} 7... e5 8. Bg3 Be6 9. cxd5 Qxd5 10. Qxd5 Bxd5 11. a3 h5 12. b4 a5 13. b5 Ne7 {0-1 (53) Wessel,R-Schleef,H freechess.de 2020}) 8. Qxd8+ {[%emt 0:00:48]} Nxd8 {[%emt 0:00:25]} 9. Bxc4 {[%emt 0:01:00]} e5 {[%emt 0:00:36]} 10. Bg3 {[%emt 0:00:50]} Bxc5 {[%emt 0:01:31]} 11. O-O {[%emt 0:01:10]} ({Better is} 11. Bd5 $11 Nxg3 12. hxg3) 11... Be6 $15 {[%emt 0:01:30]} 12. Nbd2 {[%emt 0:08:56]} Nd6 {[%emt 0:05:15] Against Bb5+} 13. Bxe6 {[%emt 0:07:01]} Nxe6 {[%emt 0:00:34]} 14. Rfd1 {[%emt 0:00:29]} Ke7 {[%emt 0:00:47]} 15. Ne1 {[%emt 0:01:56]} h5 {[%emt 0:06:20] Strongly threatening ...h4.} 16. h4 {[%emt 0:01:36]} Rac8 {[%emt 0:08:07]} 17. Kf1 {[%emt 0:04:57]} Bb6 {[%emt 0:13:04]} 18. Nd3 {[%emt 0:03:12]} (18. Ke2 $142) 18... Rc2 {[%emt 0:05:20]} ({Black should try} 18... Nf5 $17 {[%cal Ob6e3] And now ...Bxe3! would win.} 19. Nb4 Rhd8) 19. b3 {[%emt 0:09:28]} (19. Rab1 $15) 19... a5 {[%emt 0:05:37]} 20. Ne1 {[%emt 0:07:28]} Rc3 {[%emt 0:01:54]} 21. Rac1 {[%emt 0:00:56]} Rhc8 {[%emt 0:04:24]} 22. Rxc3 {[%emt 0:01:10]} Rxc3 {[%emt 0:00:07]} 23. Ke2 {[%emt 0:01:10] [#]} Nc7 {[%emt 0:03:50]} (23... Nc5 $1 $17 24. Bh2 g6) 24. Nb1 $1 {[%emt 0:02:07]} Rc6 {[%emt 0:03:22]} 25. f3 $1 {[%emt 0:00:37]} Ke6 {[%emt 0:01:11]} 26. Bf2 {[%emt 0:02:15]} Nd5 {[%emt 0:03:57]} (26... f5 $15) 27. e4 $1 $11 {[%emt 0:02:59] The position is equal.} Nb4 {[%emt 0:02:56] Threatens to win with ...Bxf2.} 28. Bxb6 {[%emt 0:01:55]} Rxb6 {[%emt 0:00:05]} 29. Nc3 {[%emt 0:01:25]} Nb5 {[%emt 0:01:01]} 30. Nxb5 {[%emt 0:00:48]} Rxb5 {[%emt 0:00:08]} 31. Rd2 {[%emt 0:00:20]} Nc6 {[%emt 0:02:06]} 32. Nc2 {[%emt 0:01:38]} a4 {[%emt 0:02:20] Weighted Error Value: White=0.11 (very precise) /Black=0.15 (very precise)} 1/2-1/2

[Event "Czech Championship 2022"]
[Site "Usti nad Labem"]
[Date "2022.05.18"]
[Round "5.20"]
[White "Kozak, Milos"]
[Black "Vojta, Jakub"]
[Result "0-1"]
[ECO "D76"]
[WhiteElo "2114"]
[BlackElo "2396"]
[Annotator "TA"]
[PlyCount "98"]
[EventDate "2022.05.12"]
[EventType "swiss"]
[EventCountry "CZE"]
[SourceTitle "playchess.com"]
[Source "ChessBase"]
[SourceQuality "1"]
[TimeControl "40/5400+30:1800+30"]

{[%evp 19,98,12,14,15,16,20,23,21,11,18,16,12,14,-27,-31,-70,31,14,34,23,26,24,49,64,64,62,87,49,81,79,73,70,85,64,65,62,114,108,103,10,91,13,40,0,0,0,0,0,0,0,-11,-7,0,0,0,0,8,21,70,-83,-90,-92,-70,-115,-20,-257,-225,-536,-534,-549,-493,-2420,-2342,-2037,-1866,-1633,-1367,-29977,-29978,-29977,-29977]} 1. Nf3 {[%emt 0:04:38]} Nf6 {[%emt 0:00:11]} 2. g3 {[%emt 0:00:55]} g6 {[%emt 0:00:39]} 3. Bg2 {[%emt 0:00:09]} Bg7 {[%emt 0:00:04]} 4. c4 {[%emt 0:00:19]} O-O {[%emt 0:00:21]} 5. d4 {[%emt 0:00:44]} d5 {[%emt 0:00:11]} 6. cxd5 {[%emt 0:00:08]} Nxd5 {[%emt 0:00:06]} 7. O-O {[%emt 0:00:06]} Nb6 {[%emt 0:02:10]} 8. Nc3 {[%emt 0:00:37]} Nc6 {[%emt 0:01:26][%cal Bb8c6,Bc6a5,Ba5c4][%mdl 32]} 9. e3 {[%emt 0:00:11]} Re8 {[%emt 0:01:23]} 10. h3 {[%emt 0:00:24]} e5 {[%emt 0:01:45][%cal Re5d4]} 11. d5 {[%emt 0:03:58] D76: Fianchetto Grünfeld: Main Line with 7...Nb6.} Na5 {[%emt 0:01:39]} 12. Qc2 {[%emt 0:01:47]} c6 {[%emt 0:04:47]} 13. b4 {[%emt 0:01:38] White has an edge.} Nac4 {[%emt 0:00:41]} 14. dxc6 {[%emt 0:00:14]} bxc6 {[%emt 0:00:50]} 15. Rd1 {[%emt 0:02:27]} Qe7 {[%emt 0:05:05]} 16. a3 {[%emt 0:04:42] [#]} (16. Nd2 {looks sharper.} Bf5 17. Nce4 Red8 18. a3) 16... Be6 $146 {[%emt 0:14:43]} ({Predecessor:} 16... Bf5 17. Ne4 Red8 18. Rxd8+ Rxd8 19. Nfd2 Nxd2 20. Bxd2 h5 21. Be1 Qe6 22. Rd1 Nd5 {1-0 (37) Oparin,G (2681)-Assaubayeva,B (2434) Chess.com INT 2022}) 17. Nd2 {[%emt 0:14:53]} Rac8 {[%emt 0:02:16] Black is more active.} ({Better is} 17... e4 $1 $15) 18. Nxc4 $14 {[%emt 0:11:27]} Nxc4 {[%emt 0:00:34]} 19. Ne4 {[%emt 0:05:09]} Bd5 {[%emt 0:04:22]} 20. Bf1 $36 {[%emt 0:04:29][%mdl 2048] White has some pressure.} Nb6 {[%emt 0:06:34]} 21. Nc5 {[%emt 0:02:48]} f5 {[%emt 0:03:43]} 22. e4 {[%emt 0:08:59]} Bf7 {[%emt 0:01:47]} 23. Bb2 {[%emt 0:03:23]} f4 {[%emt 0:02:14]} 24. gxf4 {[%emt 0:08:55]} exf4 {[%emt 0:00:14]} 25. Bxg7 {[%emt 0:00:06]} Kxg7 {[%emt 0:00:41]} 26. Qc3+ {[%emt 0:02:58]} Kh6 {[%emt 0:05:17]} 27. Qf3 {[%emt 0:01:41]} g5 {[%emt 0:00:19]} ({Black should try} 27... Qg5+ $14 28. Qg4 Rcd8) 28. Be2 {[%emt 0:02:37]} Rcd8 {[%emt 0:02:57]} 29. Kh1 {[%emt 0:00:59]} (29. Qc3 $16) 29... Bg6 {[%emt 0:02:29]} (29... Nd7 $1 $11) 30. Kh2 {[%emt 0:04:41]} (30. Rxd8 $16 Qxd8 31. h4) 30... Qe5 {[%emt 0:01:25]} 31. Rxd8 {[%emt 0:01:57]} (31. Kg1 $14) 31... Rxd8 $11 {[%emt 0:00:08]} 32. Rd1 {[%emt 0:00:17]} Rxd1 {[%emt 0:00:22]} 33. Bxd1 {[%emt 0:00:21]} Nc4 {[%emt 0:00:30]} 34. h4 {[%emt 0:03:37]} gxh4 {[%emt 0:05:19]} 35. Qg4 $1 {[%emt 0:01:40]} Qf6 {[%emt 0:00:39]} 36. Kh3 {[%emt 0:01:23]} (36. Ne6 {is more complex.} Ne5 37. Qxf4+ Qxf4+ 38. Nxf4 Bxe4 39. Kh3) 36... Nxa3 {[%emt 0:01:48]} 37. Qxh4+ {[%emt 0:00:29]} (37. Ba4 {keeps more tension.} Nc4 38. Nd7 Qg5 39. Bxc6 Nd2 40. Qxh4+ Qxh4+ 41. Kxh4 Bxe4 42. Bxe4 Nxe4 43. f3) 37... Qxh4+ {[%emt 0:04:11]} 38. Kxh4 {[%emt 0:00:05][%mdl 4096] Endgame KBN-KBN} Nc4 {[%emt 0:00:44]} (38... Nb5 $11) 39. f3 $2 {[%emt 0:01:47]} (39. Bc2 $1 $14) 39... Ne5 $17 {[%emt 0:03:01] aiming for ...Bh5.} 40. Ne6 {[%emt 0:00:19]} Bh5 {[%emt 0:08:42]} 41. Nd4 {[%emt 0:30:27]} Be8 {[%emt 0:36:16]} (41... Bf7 $17) 42. Nf5+ $2 {[%emt 0:00:00] Loses the game.} (42. Ne6 $1 $11 {and White is okay.}) 42... Kg6 $19 {[%emt 0:00:00]} 43. Be2 $2 {[%emt 0:00:00] [#]} (43. Nd4) 43... Bd7 $1 {[%emt 0:00:00]} 44. Nd4 {[%emt 0:00:00]} Bc8 {[%emt 0:00:00] Inhibits Ba6.} 45. Bf1 {[%emt 0:00:00] [#]} (45. Bd1 $142 Bd7 46. Be2) 45... Kh6 $1 {[%emt 0:00:00][%cal Re5g6]} 46. Nf5+ {[%emt 0:00:00]} Bxf5 {[%emt 0:00:00]} 47. exf5 {[%emt 0:00:00]} Nxf3+ {[%emt 0:00:00]} 48. Kg4 {[%emt 0:00:00]} Nh2+ {[%emt 0:00:00]} 49. Kxf4 {[%emt 0:00:00]} Nxf1 {[%emt 0:00:00] Weighted Error Value: White=0.73/Black=0.21 (precise)} 0-1

[Event "Czech Championship 2022"]
[Site "Usti nad Labem"]
[Date "2022.05.18"]
[Round "5.21"]
[White "Horak, Jiri"]
[Black "Sykora, Ondrej"]
[Result "0-1"]
[ECO "D46"]
[WhiteElo "2161"]
[BlackElo "2092"]
[Annotator "TA"]
[PlyCount "88"]
[EventDate "2022.05.12"]
[EventType "swiss"]
[EventCountry "CZE"]
[SourceTitle "playchess.com"]
[Source "ChessBase"]
[SourceQuality "1"]
[TimeControl "40/5400+30:1800+30"]

{[%evp 22,88,-38,-40,-42,-91,-63,-83,-77,-75,-60,-45,-43,-52,-50,-96,-94,-93,-59,-83,-57,-181,-179,-188,-186,-181,-183,-178,-185,-254,-256,-249,-212,-340,-326,-425,-423,-407,-398,-434,-360,-538,-413,-395,-371,-577,-562,-525,-550,-393,-385,-377,-265,-422,-400,-509,-506,-785,-773,-911,-852,-979,-896,-1887,-812,-6628,-6066,-29971,-29969]} 1. d4 {[%emt 0:00:05]} Nf6 {[%emt 0:13:23]} 2. Nf3 {[%emt 0:00:38]} e6 {[%emt 0:00:17]} 3. c4 {[%emt 0:00:18]} d5 {[%emt 0:00:07]} 4. Nc3 {[%emt 0:00:10]} c6 {[%emt 0:00:10]} 5. e3 {[%emt 0:00:13]} Nbd7 {[%emt 0:00:33]} 6. Bd3 {[%emt 0:00:31]} Bd6 {[%emt 0:00:18]} 7. O-O {[%emt 0:00:38]} O-O {[%emt 0:00:03]} 8. e4 {[%emt 0:00:57]} dxc4 {[%emt 0:00:18]} 9. Bxc4 {[%emt 0:00:08]} e5 {[%emt 0:00:10]} 10. dxe5 {[%emt 0:03:15]} Nxe5 {[%emt 0:00:10]} 11. Nxe5 {[%emt 0:00:52]} Bxe5 {[%emt 0:00:01]} 12. Qc2 {[%emt 0:06:59]} Qe7 {[%emt 0:01:24] D46: Semi-Slav: 5 e3 Nbd7 6 Bd3, Black avoids the Meran.} 13. Bd3 {[%emt 0:07:40] [#]} (13. Be2 $15 {deserves consideration.}) 13... Rd8 $146 {[%emt 0:01:55]} (13... Ng4 {with more complications.} 14. h3 Qh4 15. Be2 Bh2+) ({Predecessor:} 13... Re8 14. h3 Nh5 15. Ne2 Qh4 16. f4 Bc7 17. e5 Bxh3 18. Be3 Bxg2 19. Kxg2 Qg4+ 20. Kh2 Rxe5 21. fxe5 Bxe5+ {0-1 (31) Shabtai,R (2293)-Polgar,S (2464) Israel 2002}) 14. g3 {[%emt 0:19:05]} Bh3 {[%emt 0:02:36] Black is better.} 15. Re1 {[%emt 0:00:27]} Ng4 {[%emt 0:01:30]} 16. Bf1 {[%emt 0:05:29]} Bxf1 {[%emt 0:00:44]} 17. Rxf1 {[%emt 0:00:10]} Bd4 $36 {[%emt 0:09:37][%mdl 2048] Black is more active.} 18. h3 {[%emt 0:09:24]} (18. Kg2 $15 {should be considered.}) 18... Ne5 $17 {[%emt 0:00:44][%cal Bg4e5,Be5d3,Bd3b2][%mdl 32]} 19. Kg2 {[%emt 0:06:08]} b5 {[%emt 0:08:35]} ({Much worse is} 19... Qf6 $6 20. Bf4 $15) 20. Ne2 {[%emt 0:01:42]} Bb6 {[%emt 0:10:58] Strongly threatening ...Nd3. 0x0.001a2c978a2edp-1022s more active pieces. The white rooks are badly placed.} 21. Bf4 {[%emt 0:00:50] [#] This move loses the game for White.} (21. f3 $15) 21... Nd3 $1 $19 {[%emt 0:01:20]} 22. f3 {[%emt 0:02:45] [#]} Qb4 $1 {[%emt 0:05:33]} 23. Rfd1 {[%emt 0:25:03]} Qxb2 {[%emt 0:04:18]} 24. Qxb2 {[%emt 0:00:31]} Nxb2 {[%emt 0:00:08]} 25. Rd6 {[%emt 0:02:10]} (25. Rdc1 {was called for.}) 25... Rxd6 {[%emt 0:03:18]} 26. Bxd6 {[%emt 0:00:05]} Rd8 {[%emt 0:00:14]} 27. e5 {[%emt 0:01:48]} (27. Rb1 $142) 27... Nc4 {[%emt 0:00:29]} 28. f4 {[%emt 0:00:29]} Nxd6 {[%emt 0:00:59]} 29. exd6 {[%emt 0:00:38]} Rxd6 {[%emt 0:00:01][%mdl 4096] Endgame KRB-KRN} 30. Rc1 {[%emt 0:00:19]} f5 {[%emt 0:01:07]} 31. g4 {[%emt 0:00:42]} (31. Rc2 {is a better defense.}) 31... fxg4 {[%emt 0:05:09]} 32. hxg4 {[%emt 0:00:06]} c5 {[%emt 0:01:00]} 33. Nc3 {[%emt 0:01:26]} (33. Rc2 {was worth a try.}) 33... Rd2+ {[%emt 0:02:40]} 34. Kf3 {[%emt 0:00:18]} b4 {[%emt 0:00:56]} 35. Na4 {[%emt 0:00:25]} Rxa2 {[%emt 0:00:20]} 36. Nxc5 {[%emt 0:00:16]} a5 {[%emt 0:10:31]} 37. Nd7 {[%emt 0:00:48]} (37. Nd3 {was the only defense.}) 37... Bd4 {[%emt 0:00:20] Hoping for ...b3.} 38. Ke4 {[%emt 0:00:47]} Bc3 {[%emt 0:00:41] White must now prevent ...a4.} 39. Nb6 {[%emt 0:03:05]} (39. Nc5 $142 a4 40. Rd1) 39... Ra1 {[%emt 0:09:35]} 40. Rxa1 {[%emt 0:02:31]} Bxa1 {[%emt 0:00:03]} 41. Kd3 {[%emt 0:30:08]} g6 {[%emt 0:31:47][%cal Bg7g6,Bg6h5][%mdl 32] And now ...h5 would win.} 42. Kc4 {[%emt 0:00:00]} Bc3 {[%emt 0:00:00]} (42... h5 $142 43. Nd5 hxg4) 43. Kb3 {[%emt 0:00:00]} h5 {[%emt 0:00:00]} 44. gxh5 {[%emt 0:00:00]} gxh5 {[%emt 0:00:00] Weighted Error Value: White=0.85/Black=0.15 (very precise)} 0-1

[Event "Czech Championship 2022"]
[Site "Usti nad Labem"]
[Date "2022.05.18"]
[Round "5.22"]
[White "Ret, Adam Josef"]
[Black "Hladky, Tadeas"]
[Result "1/2-1/2"]
[ECO "A22"]
[WhiteElo "2093"]
[BlackElo "2119"]
[Annotator "TA"]
[PlyCount "61"]
[EventDate "2022.05.12"]
[EventType "swiss"]
[EventCountry "CZE"]
[SourceTitle "playchess.com"]
[Source "ChessBase"]
[SourceQuality "1"]
[TimeControl "40/5400+30:1800+30"]

{[%evp 11,61,-18,18,0,18,20,22,15,29,22,25,13,35,12,44,36,40,58,63,30,100,79,132,88,116,108,158,149,151,135,139,117,128,117,117,44,85,0,20,-14,141,-8,120,0,0,0,0,-54,-56,-59,0,-47]} 1. c4 {[%emt 0:00:06]} Nf6 {[%emt 0:00:07]} 2. Nc3 {[%emt 0:00:15]} e5 {[%emt 0:00:31]} 3. g3 {[%emt 0:02:38]} Bb4 {[%emt 0:00:55]} 4. Bg2 {[%emt 0:02:28]} O-O {[%emt 0:00:40]} 5. e3 {[%emt 0:01:42]} c6 {[%emt 0:02:29]} 6. Nge2 {[%emt 0:03:09]} d6 {[%emt 0:02:47]} 7. a3 {[%emt 0:02:00] A22: English Opening: 1...e5 2 Nc3 Nf6.} Ba5 {[%emt 0:00:13]} 8. O-O {[%emt 0:02:00]} Be6 {[%emt 0:01:21]} 9. b3 {[%emt 0:00:45][%cal Bb2b3,Bb3b4][%mdl 32] [#]} d5 $146 {[%emt 0:04:07]} ({Predecessor:} 9... Qd7 10. Re1 Bh3 11. Bh1 Ng4 12. Bb2 Qf5 13. f3 Nf6 14. d4 Rd8 15. b4 Bc7 {1-0 (31) Hung,J (1671)-Weaver,S England 2014}) 10. b4 {[%emt 0:04:14]} Bc7 {[%emt 0:06:25]} 11. cxd5 {[%emt 0:01:06]} Nxd5 {[%emt 0:01:12]} 12. Bb2 {[%emt 0:01:47]} Nb6 {[%emt 0:02:24]} 13. d4 {[%emt 0:03:34]} a5 {[%emt 0:15:05]} 14. b5 {[%emt 0:04:26]} Bc4 {[%emt 0:01:21]} 15. bxc6 {[%emt 0:07:23]} bxc6 {[%emt 0:03:10]} (15... Nxc6 $11 16. Re1 f5) 16. Re1 $16 {[%emt 0:00:49]} Qe7 {[%emt 0:07:11]} (16... Be6 $142) 17. Na4 {[%emt 0:09:11]} Ra6 {[%emt 0:17:18]} 18. Rc1 {[%emt 0:10:54]} Bb5 {[%emt 0:12:03]} (18... Rd8 $142) 19. Nc5 {[%emt 0:02:06]} Ra7 {[%emt 0:00:15]} 20. a4 {[%emt 0:12:50]} Bc4 {[%emt 0:02:36]} 21. Qc2 {[%emt 0:01:32]} Bd6 {[%emt 0:02:43]} 22. Ne4 {[%emt 0:14:20] White is more active.} Bb4 {[%emt 0:01:40] [#]} 23. Bc3 {[%emt 0:00:39]} ({Much less strong is} 23. Nd2 Ba6 $14) (23. dxe5 $1 $16 {Strongly threatening Red1.} Bxe1 24. Rxe1) 23... N8d7 {[%emt 0:03:59]} 24. Ra1 {[%emt 0:02:38]} ({White should play} 24. dxe5 $16 {aiming for f4.} Nxe5 25. Bxe5 Qxe5 26. Red1) 24... c5 {[%emt 0:05:33]} 25. dxc5 {[%emt 0:01:06]} (25. dxe5 {is interesting.} Nxe5 26. Red1 Rd7 27. Rxd7 Nexd7 28. Rd1) 25... Nxc5 $2 {[%emt 0:00:31]} (25... Bxc5 $11 26. h4 f6) 26. Nxc5 {[%emt 0:00:49]} (26. Bxb4 $1 $16 axb4 27. a5 Nxe4 28. Bxe4) 26... Bxc5 {[%emt 0:01:05] [#]} (26... Qxc5 $11 {remains equal.} 27. Bxb4 axb4) 27. Nc1 {[%emt 0:02:06]} (27. Nd4 $1 $16 {[%cal Rd4c6][%mdl 512] Black must now prevent Nc6.} Bd5 (27... Bxd4 28. exd4) 28. Bxd5 Nxd5 29. Nc6) 27... Rd8 $11 {[%emt 0:02:43]} 28. Be4 {[%emt 0:02:11]} g6 {[%emt 0:00:05]} 29. Bd3 {[%emt 0:00:58]} ({Better is} 29. Rd1 $11) 29... Bd5 $15 {[%emt 0:01:01]} 30. Be4 {[%emt 0:00:14]} Bc4 {[%emt 0:01:05]} ({Black should try} 30... Bb4 $15 31. Bxd5 Nxd5 32. Bxb4 Nxb4) 31. Bd3 {[%emt 0:00:08] Weighted Error Value: White=0.34/Black=0.38} (31. Nb3 $11 Bb4 32. Bxb4 Qxb4 33. Reb1) 1/2-1/2